bitfinex-derivatives/quotes_SOLF0:USTF0_20230102
["timestamp","ask_amount","ask_price","bid_price","bid_amount"]
[1672644296735,54.99581784,10.933,10.898,50.0]
[1672644296938,5.0,10.932,10.898,50.0]
[1672644297155,21.82622591,10.932,10.898,50.0]
[1672644297367,5.0,10.931,10.898,50.0]
[1672644297575,5.0,10.931,10.905,5.0]
[1672644297995,5.0,10.931,10.907,5.0]
[1672644298830,5.0,10.931,10.908,50.0]
[1672644299041,5.0,10.932,10.909,5.0]
[1672644299254,5.0,10.932,10.909,11.77195485]
[1672644299669,13.71,10.93,10.905,5.0]
[1672644300093,5.0,10.929,10.905,5.0]
[1672644301149,5.0,10.929,10.909,5.0]
[1672644301561,5.0,10.929,10.905,5.0]
[1672644301562,5.0,10.929,10.91,6.77404717]
[1672644301771,68.63,10.928,10.91,6.77404717]
[1672644301983,5.0,10.927,10.905,5.0]
[1672644303455,5.0,10.927,10.902,5.0]
[1672644303981,5.0,10.927,10.904,6.79154048]
[1672644304190,5.0,10.926,10.904,6.79154048]
[1672644304610,4.78453314,10.926,10.902,5.0]
[1672644305025,6.38453314,10.926,10.898,50.0]
[1672644305660,6.38453314,10.926,10.902,6.79408488]
[1672644305873,6.38453314,10.926,10.903,5.0]
[1672644307028,6.38453314,10.926,10.898,50.0]
[1672644307447,6.38453314,10.926,10.901,6.7947468]
[1672644307657,68.65,10.925,10.902,5.0]
[1672644307967,5.0,10.924,10.902,5.0]
[1672644308184,5.0,10.924,10.903,6.7947468]
[1672644308395,5.0,10.922,10.903,6.7947468]
[1672644308598,68.68,10.921,10.903,6.7947468]
[1672644308813,13.71,10.914,10.9,0.0047468]
[1672644309227,5.0,10.913,10.889,0.0047468]
[1672644309448,13.57,10.908,10.889,0.0047468]
[1672644309650,5.0,10.907,10.879,0.0047468]
[1672644309860,5.0,10.907,10.888,50.0]
[1672644310182,5.0,10.907,10.889,5.0]
[1672644310493,13.61,10.901,10.89,0.0047468]
[1672644310704,13.67,10.906,10.89,0.0047468]
[1672644310914,5.0,10.905,10.879,0.0047468]
[1672644311124,68.78,10.904,10.879,0.0047468]
[1672644311342,5.0,10.905,10.872,0.0047468]
[1672644311547,49.99581784,10.903,10.872,0.0047468]
[1672644311750,68.78,10.904,10.878,50.0]
[1672644311966,5.0,10.902,10.878,50.0]
[1672644312280,5.0,10.902,10.879,0.0047468]
[1672644312907,13.71,10.897,10.879,0.0047468]
[1672644313124,13.71,10.89,10.879,0.0047468]
[1672644313645,5.0,10.889,10.859,5.0]
[1672644314066,5.0,10.888,10.86,0.0047468]
[1672644314592,5.0,10.888,10.859,5.0047468]
[1672644314803,5.0,10.888,10.868,50.0]
[1672644315013,5.0,10.888,10.869,5.0]
[1672644315430,5.0,10.89,10.87,0.0047468]
[1672644315639,5.0,10.892,10.87,0.0047468]
[1672644315956,5.0,10.903,10.878,50.0]
[1672644316372,54.99581784,10.903,10.879,0.0047468]
[1672644316794,68.8,10.901,10.869,5.0047468]
[1672644317005,5.0,10.901,10.869,5.0047468]
[1672644317639,5.0,10.899,10.869,0.0047468]
[1672644317847,49.99581784,10.893,10.869,0.0047468]
[1672644318060,5.0,10.888,10.864,0.0047468]
[1672644318263,63.70581784,10.883,10.864,0.0047468]
[1672644318476,5.0,10.882,10.864,0.0047468]
[1672644318682,5.0,10.882,10.858,50.0]
[1672644319108,5.0,10.882,10.859,5.0047468]
[1672644319325,5.0,10.882,10.86,5.0]
[1672644320058,5.0,10.882,10.861,0.0047468]
[1672644320686,5.0,10.882,10.859,0.0047468]
[1672644321319,4.81149726,10.882,10.859,5.0047468]
[1672644321527,4.81149726,10.882,10.859,0.0047468]
[1672644321736,5.0,10.878,10.859,0.0047468]
[1672644322159,5.0,10.878,10.859,5.0047468]
[1672644322574,4.81149726,10.882,10.859,5.0]
[1672644322788,4.81149726,10.882,10.868,50.0]
[1672644322995,4.81149726,10.882,10.869,5.0]
[1672644323206,5.0,10.886,10.868,50.0]
[1672644323529,5.0,10.886,10.87,0.0047468]
[1672644324050,5.0,10.886,10.868,50.0]
[1672644324051,5.0,10.886,10.869,0.0047468]
[1672644324885,5.0,10.886,10.859,0.0047468]
[1672644325094,68.9,10.885,10.859,0.0047468]
[1672644325309,5.0,10.884,10.859,0.0047468]
[1672644325625,68.91,10.883,10.859,0.0047468]
[1672644325832,5.0,10.882,10.857,50.0]
[1672644326038,5.0,10.882,10.858,5.0047468]
[1672644326254,5.0,10.882,10.858,0.0047468]
[1672644326468,5.0,10.882,10.859,5.0]
[1672644326784,5.0,10.882,10.867,50.0]
[1672644327198,5.0,10.882,10.86,0.0047468]
[1672644327408,5.0,10.882,10.868,0.0047468]
[1672644328038,5.0,10.882,10.859,5.0]
[1672644328360,5.0,10.882,10.86,0.0047468]
[1672644328776,5.0,10.882,10.859,5.0047468]
[1672644330038,5.0,10.882,10.867,50.0]
[1672644330359,5.0,10.882,10.868,5.0]
[1672644330566,5.0,10.882,10.868,5.0047468]
[1672644330879,5.0,10.882,10.868,0.0047468]
[1672644331300,5.0,10.884,10.868,0.0047468]
[1672644331511,1.32217727,10.884,10.868,0.0047468]
[1672644331715,1.32217727,10.884,10.868,5.0047468]
[1672644331930,5.0,10.886,10.868,5.0047468]
[1672644332351,5.0,10.886,10.868,0.0047468]
[1672644332772,5.0,10.886,10.859,5.0]
[1672644332773,5.0,10.886,10.867,50.0]
[1672644332981,5.0,10.886,10.868,5.0]
[1672644333190,5.0,10.89,10.868,5.0047468]
[1672644334139,5.0,10.892,10.868,5.0047468]
[1672644334140,5.0,10.892,10.868,5.0]
[1672644334559,5.0,10.892,10.869,0.0047468]
[1672644334762,5.0,10.898,10.878,5.0]
[1672644334976,5.0,10.902,10.878,5.0]
[1672644335399,5.0,10.902,10.879,0.0047468]
[1672644336027,5.0,10.902,10.878,5.0047468]
[1672644336239,1.5,10.9,10.878,5.0047468]
[1672644336656,1.5,10.9,10.879,5.0]
[1672644337283,1.5,10.9,10.88,0.0047468]
[1672644337704,1.5,10.9,10.879,5.0047468]
[1672644337919,1.5,10.9,10.886,50.0]
[1672644338335,5.0,10.912,10.887,5.0]
[1672644338546,3.98981558,10.914,10.887,5.0047468]
[1672644339078,3.98981558,10.914,10.887,5.0]
[1672644339495,3.98981558,10.914,10.888,0.0047468]
[1672644339707,3.98981558,10.914,10.889,5.0]
[1672644340341,3.98981558,10.914,10.89,0.0047468]
[1672644340551,5.0,10.919,10.89,0.0047468]
[1672644340865,5.0,10.919,10.889,5.0047468]
[1672644342120,16.85005165,10.918,10.889,5.0047468]
[1672644342339,5.0,10.917,10.889,5.0047468]
[1672644343802,5.0,10.919,10.889,5.0047468]
[1672644344012,5.0,10.923,10.897,5.0]
[1672644344223,550.43454357,10.945,10.916,50.0]
[1672644344432,1701.22211606,10.955,10.898,68.82]
[1672644344433,550.43454357,10.962,10.926,50.0]
[1672644344643,5.0,10.951,10.917,5.0]
[1672644344849,5.0,10.951,10.917,5.0047468]
[1672644345278,16.81293479,10.95,10.917,5.0]
[1672644345485,5.0,10.949,10.917,5.0]
[1672644345911,13.7,10.947,10.917,5.0]
[1672644346116,5.0,10.946,10.917,5.0]
[1672644346327,5.0,10.946,10.916,5.0]
[1672644346537,13.71,10.94,10.91,5.0]
[1672644346742,5.0,10.939,10.91,5.0]
[1672644347063,68.57,10.938,10.91,5.0]
[1672644347381,16.81293479,10.937,10.91,5.0]
[1672644347584,5.0,10.936,10.91,5.0]
[1672644348009,16.81293479,10.937,10.91,5.0]
[1672644348222,5.0,10.938,10.915,50.0]
[1672644348536,5.0,10.938,10.916,5.0]
[1672644349271,5.0,10.936,10.916,5.0]
[1672644349691,5.0,10.938,10.916,5.0]
[1672644350850,73.5,10.949,10.916,5.0]
[1672644351160,5.0,10.948,10.916,4.78849561]
[1672644351371,5.0,10.942,10.916,4.78849561]
[1672644352738,5.0,10.948,10.925,50.0]
[1672644353256,5.0,10.951,10.916,4.78849561]
[1672644353468,16.80981104,10.945,10.916,4.78849561]
[1672644353892,5.0,10.944,10.916,4.78849561]
[1672644354415,5.0,10.944,10.917,6.33243366]
[1672644354626,5.0,10.944,10.918,5.0]
[1672644355359,16.81076386,10.943,10.918,5.0]
[1672644355567,0.50136661,10.943,10.934,50.0]
[1672644355882,49.99581784,10.972,10.934,50.0]
[1672644356097,5.0,10.971,10.935,5.0]
[1672644356518,68.37,10.97,10.935,5.0]
[1672644356833,5.0,10.969,10.935,5.0]
[1672644357044,68.38,10.968,10.935,5.0]
[1672644357249,5.0,10.967,10.926,5.0]
[1672644357463,13.6,10.961,10.926,5.0]
[1672644357675,5.0,10.96,10.926,5.0]
[1672644357878,21.78833724,10.96,10.926,5.0]
[1672644358091,5.0,10.959,10.926,5.0]
[1672644358513,16.78833724,10.958,10.926,5.0]
[1672644358723,5.0,10.957,10.926,5.0]
[1672644359246,16.78833724,10.956,10.926,5.0]
[1672644359458,5.0,10.955,10.926,5.0]
[1672644360086,16.78833724,10.954,10.926,5.0]
[1672644360302,5.0,10.953,10.926,5.0]
[1672644360715,5.0,10.951,10.926,5.0]
[1672644362190,13.61,10.947,10.914,5.0]
[1672644362403,68.52,10.946,10.914,5.0]
[1672644362622,13.71,10.941,10.914,55.0]
[1672644362933,5.0,10.951,10.917,7.37666556]
[1672644362934,5.0,10.94,10.917,7.37666556]
[1672644363138,5.0,10.94,10.918,5.0]
[1672644363987,5.0,10.944,10.918,5.0]
[1672644364300,5.0,10.949,10.918,5.0]
[1672644364301,5.0,10.949,10.923,50.0]
[1672644364508,5.0,10.949,10.924,5.0]
[1672644364721,2.0,10.951,10.933,50.0]
[1672644365031,2.0,10.951,10.934,7.35606596]
[1672644365244,2.0,10.951,10.934,12.35606596]
[1672644365659,2.0,10.951,10.934,5.0]
[1672644365870,49.99581784,10.961,10.934,5.0]
[1672644366296,5.0,10.96,10.934,5.0]
[1672644366503,21.79227543,10.96,10.934,5.0]
[1672644366926,5.0,10.96,10.934,5.0]
[1672644369443,16.79250834,10.959,10.934,5.0]
[1672644369653,5.0,10.958,10.934,5.0]
[1672644370493,16.79250834,10.957,10.934,5.0]
[1672644370711,5.0,10.956,10.934,5.0]
[1672644371758,16.79362067,10.955,10.934,5.0]
[1672644372075,5.0,10.97,10.942,50.0]
[1672644372391,5.0,10.971,10.942,50.0]
[1672644372602,16.77199535,10.969,10.943,5.0]
[1672644373018,16.77199535,10.97,10.943,5.0]
[1672644373334,5.0,10.969,10.943,5.0]
[1672644373543,16.77199535,10.973,10.943,5.0]
[1672644373755,49.99581784,10.991,10.952,50.0]
[1672644374064,54.99581784,10.991,10.953,5.0]
[1672644374281,5.0,10.99,10.953,5.0]
[1672644374493,21.75942186,10.99,10.953,5.0]
[1672644374809,16.75942186,10.989,10.953,5.0]
[1672644375010,5.0,10.988,10.953,5.0]
[1672644375853,16.75942186,10.987,10.953,5.0]
[1672644376059,5.0,10.986,10.953,5.0]
[1672644376590,16.75942186,10.985,10.953,5.0]
[1672644377017,16.75942186,10.985,10.961,50.0]
[1672644377224,13.84,11.002,10.953,128.45]
[1672644377225,13.61,10.999,10.953,18.71]
[1672644377433,51.7404,10.994,10.953,18.71]
[1672644377641,49.99581784,10.991,10.954,5.0]
[1672644377862,49.99581784,10.991,10.954,55.3964]
[1672644378068,5.0,10.98,10.954,5.0]
[1672644379334,16.75723792,10.979,10.954,5.0]
[1672644379538,16.75723792,10.979,10.961,50.0]
[1672644379747,5.0,10.986,10.961,50.0]
[1672644379959,5.0,10.988,10.961,50.0]
[1672644380171,5.0,10.988,10.962,5.0]
[1672644380591,51.7404,10.999,10.962,5.0]
[1672644380592,16.746564,10.987,10.962,5.0]
[1672644381012,5.0,10.986,10.962,5.0]
[1672644381432,5.0,10.991,10.962,5.0]
[1672644381854,5.0,10.997,10.962,5.0]
[1672644382062,16.74525326,10.99,10.962,73.42]
[1672644382273,16.74525326,10.99,10.962,5.0]
[1672644382482,5.0,10.997,10.962,5.0]
[1672644382483,16.74525326,10.992,10.962,5.0]
[1672644382900,5.0,10.991,10.962,5.0]
[1672644383322,16.74525326,10.99,10.962,5.0]
[1672644383846,5.0,10.989,10.962,5.0]
[1672644384580,5.0,10.999,10.964,13.64]
[1672644384797,5.0,10.999,10.97,50.0]
[1672644385009,5.0,10.999,10.964,13.64]
[1672644385010,5.0,10.999,10.965,5.0]
[1672644385218,16.73187307,10.998,10.965,5.0]
[1672644385422,16.73187307,10.998,10.97,63.63]
[1672644385423,5.80440414,10.998,10.97,63.63]
[1672644385637,67.92,11.042,10.99,50.0]
[1672644385845,67.92,11.042,10.966,11.31295794]
[1672644385846,118.4608,11.057,11.019,50.0]
[1672644386058,67.76,11.068,11.019,50.0]
[1672644386268,16.67505688,11.041,11.029,50.0]
[1672644386474,49.99581784,11.06,11.03,5.0]
[1672644386689,13.7,11.054,11.02,11.31295794]
[1672644386895,13.7,11.054,11.011,13.73]
[1672644386896,49.99581784,11.04,11.001,68.18]
[1672644387106,49.99581784,11.04,10.982,137.16]
[1672644387107,49.99581784,11.03,11.002,5.0]
[1672644387312,5.0,11.052,11.008,50.0]
[1672644387528,5.0,11.052,11.002,5.0]
[1672644387529,16.66647131,11.039,11.018,50.0]
[1672644387733,49.99581784,11.06,11.021,13.63]
[1672644387949,52.5609,11.059,11.021,13.63]
[1672644388161,57.5609,11.059,11.022,5.0]
[1672644388368,13.57,11.053,11.022,5.0]
[1672644388580,49.99581784,11.04,11.013,5.0]
[1672644388897,5.0,11.039,11.006,5.0]
[1672644389114,49.99581784,11.03,11.006,5.0]
[1672644389423,5.0,11.028,11.006,5.0]
[1672644390057,15.2816771,11.027,11.006,5.0]
[1672644390267,15.2816771,11.027,10.999,5.0]
[1672644390478,73.02,11.026,10.999,5.0]
[1672644390684,15.2816771,11.027,10.999,5.0]
[1672644390898,5.0,11.026,11.003,14.23093582]
[1672644391314,5.0,11.026,10.999,5.0]
[1672644391526,5.0,11.026,10.994,5.0]
[1672644391527,15.28214488,11.025,10.994,5.0]
[1672644391839,68.03,11.024,10.994,5.0]
[1672644392049,5.0,11.019,10.994,5.0]
[1672644392573,73.06,11.019,10.994,5.0]
[1672644392785,20.28214488,11.018,10.982,5.0]
[1672644392997,73.08,11.017,10.982,5.0]
[1672644393210,88.36214488,11.017,10.982,5.0]
[1672644393417,49.99581784,11.01,10.982,5.0]
[1672644393623,5.0,11.008,10.982,5.0]
[1672644393837,20.28214488,11.016,10.982,5.0]
[1672644394045,13.67,11.04,10.99,13.62]
[1672644394263,67.86,11.052,11.007,50.0]
[1672644394470,50.6569,11.057,11.012,13.71]
[1672644394781,50.6569,11.056,11.017,50.0]
[1672644394998,20.25365145,11.056,11.018,54.2656]
[1672644395203,49.99581784,11.05,11.019,13.71]
[1672644395519,5.0,11.049,11.02,5.0]
[1672644395731,49.99581784,11.059,11.02,73.06]
[1672644395936,5.0,11.058,11.021,19.14951079]
[1672644396459,13.71,11.047,11.022,5.0]
[1672644396676,49.99581784,11.049,11.022,5.0]
[1672644396886,5.0,11.048,11.022,5.0]
[1672644397196,20.24936068,11.048,11.02,5.0]
[1672644397407,49.99581784,11.03,10.983,68.29]
[1672644397623,49.99581784,11.03,10.982,18.71]
[1672644397624,13.71,11.028,10.987,50.0]
[1672644397932,54.84,11.04,10.982,5.0]
[1672644397933,5.0,11.027,10.997,50.0]
[1672644398151,5.0,11.027,11.004,15.18224638]
[1672644398354,5.0,11.038,11.004,15.18224638]
[1672644398561,5.0,11.038,11.005,5.0]
[1672644398982,5.0,11.038,11.006,15.18224638]
[1672644399197,5.0,11.038,11.007,5.0]
[1672644399404,14.087803,11.037,11.007,68.71]
[1672644399621,14.087803,11.037,11.008,5.0]
[1672644399830,14.087803,11.043,11.008,20.18224638]
[1672644400146,5.0,11.042,11.008,20.18224638]
[1672644400350,5.0,11.042,11.009,20.18224638]
[1672644400559,5.0,11.042,11.01,5.0]
[1672644400773,5.0,11.044,11.01,5.0]
[1672644400774,14.087803,11.041,11.011,5.0]
[1672644400987,49.99581784,11.04,11.011,5.0]
[1672644401198,5.0,11.039,11.011,5.0]
[1672644401723,5.0,11.039,11.012,15.14947665]
[1672644401928,5.0,11.042,11.013,5.0]
[1672644402139,5.0,11.044,11.013,5.0]
[1672644402660,5.0,11.044,11.011,5.0]
[1672644402661,14.08291124,11.043,11.011,5.0]
[1672644402878,49.99581784,11.04,11.011,5.0]
[1672644403192,5.0,11.039,11.011,5.0]
[1672644403396,87.02291124,11.039,11.007,5.0]
[1672644403608,5.0,11.038,11.007,5.0]
[1672644403816,13.61,11.033,11.007,5.0]
[1672644404137,5.0,11.031,11.007,5.0]
[1672644404663,49.99581784,11.03,11.007,5.0]
[1672644404871,64.07872908,11.03,11.007,5.0]
[1672644405081,14.08291124,11.03,11.007,5.0]
[1672644405400,14.08291124,11.029,10.997,5.0]
[1672644405814,5.0,11.028,11.004,15.17403033]
[1672644406131,5.0,11.028,11.005,5.0]
[1672644406547,5.0,11.032,11.005,5.0]
[1672644406761,5.0,11.037,11.005,5.0]
[1672644407174,5.0,11.035,11.005,5.0]
[1672644407391,49.99581784,11.03,11.005,5.0]
[1672644407813,5.0,11.029,11.005,5.0]
[1672644408127,19.09370057,11.029,11.005,5.0]
[1672644408442,5.0,11.029,11.005,5.0]
[1672644408759,5.0,11.029,10.999,5.0]
[1672644408964,13.71,11.026,10.999,5.0]
[1672644409286,68.01,11.027,11.002,5.0]
[1672644409485,68.01,11.027,10.99,5.0]
[1672644409486,5.0,11.024,10.99,5.0]
[1672644409696,68.04,11.023,10.99,5.0]
[1672644409905,13.6,11.018,10.99,5.0]
[1672644410331,5.0,11.017,10.99,5.0]
[1672644412222,5.0,11.017,10.982,5.0]
[1672644412223,13.71,11.011,10.982,5.0]
[1672644412427,5.0,11.01,10.982,5.0]
[1672644413062,73.12,11.01,10.967,5.0]
[1672644413271,73.12,11.01,10.969,5.0]
[1672644413272,13.7,11.004,10.969,5.0]
[1672644413485,5.0,11.003,10.969,5.0]
[1672644413904,5.0,11.003,10.97,24.51672927]
[1672644414110,5.0,11.003,10.971,5.0]
[1672644414330,5.0,11.003,10.971,54.8722]
[1672644414640,5.0,11.003,10.972,5.0]
[1672644414851,13.71,10.997,10.972,21.15654224]
[1672644415063,5.0,10.996,10.972,21.15654224]
[1672644415382,5.0,10.996,10.974,5.0]
[1672644415697,5.0,11.002,10.975,16.15654224]
[1672644416011,5.0,11.002,10.976,5.0]
[1672644416852,68.18,11.001,10.976,5.0]
[1672644417058,5.0,11.0,10.976,5.0]
[1672644417587,5.0,11.0,10.973,5.0]
[1672644417791,13.57,10.988,10.959,5.0]
[1672644418003,5.0,10.993,10.959,57.4371]
[1672644418218,5.0,10.987,10.96,57.4371]
[1672644418431,5.0,10.987,10.965,24.5380636]
[1672644418636,5.0,10.993,10.968,50.0]
[1672644419057,5.0,10.993,10.969,5.0]
[1672644419582,5.0,10.993,10.969,29.5380636]
[1672644420215,5.0,10.993,10.97,16.17480505]
[1672644420417,5.0,10.993,10.971,5.0]
[1672644421159,5.0,10.993,10.972,16.17480505]
[1672644421476,5.0,10.993,10.973,5.0]
[1672644422103,5.0,10.996,10.974,16.17480505]
[1672644422314,5.0,10.996,10.975,5.0]
[1672644422947,4.83264697,10.996,10.975,5.0]
[1672644424207,5.93264697,10.996,10.975,5.0]
[1672644425465,5.93264697,10.996,10.971,5.0]
[1672644426089,5.93264697,10.996,10.972,16.17403743]
[1672644426305,5.93264697,10.996,10.973,5.0]
[1672644427149,5.93264697,10.996,10.974,16.17403743]
[1672644427462,4.83264697,10.996,10.975,5.0]
[1672644428095,4.95237487,10.996,10.975,5.0]
[1672644428305,4.95237487,10.996,10.973,5.0]
[1672644428514,73.16237487,10.996,10.973,5.0]
[1672644428725,4.95237487,10.996,10.973,5.0]
[1672644428935,4.95237487,10.996,10.974,16.17376601]
[1672644429139,68.21,10.995,10.974,16.17376601]
[1672644429353,5.1197279,10.994,10.97,5.0]
[1672644429669,0.1197279,10.993,10.97,5.0]
[1672644430300,0.1197279,10.993,10.972,5.0]
[1672644430722,0.1197279,10.993,10.973,16.17776939]
[1672644430929,0.1197279,10.993,10.974,5.0]
[1672644431562,0.1197279,10.993,10.959,5.0]
[1672644431881,5.1197279,10.99,10.959,55.0]
[1672644432195,0.1197279,10.989,10.962,16.21557106]
[1672644432405,0.1197279,10.989,10.963,5.0]
[1672644433036,0.1197279,10.989,10.964,16.21557106]
[1672644433245,0.1197279,10.993,10.965,5.0]
[1672644433983,0.1197279,10.993,10.967,5.0]
[1672644434712,0.1197279,10.993,10.968,24.58034442]
[1672644435026,0.1197279,11.004,10.969,68.37]
[1672644435242,0.1197279,11.004,10.979,50.0]
[1672644435559,0.1197279,11.004,10.98,16.21557106]
[1672644435768,0.1197279,11.007,10.981,5.0]
[1672644435978,13.71,11.004,10.981,5.0]
[1672644436292,13.16902965,11.007,10.981,5.0]
[1672644436293,5.1197279,11.003,10.981,5.0]
[1672644436506,0.1197279,11.002,10.981,5.0]
[1672644437865,0.1197279,11.002,10.976,5.0]
[1672644439657,13.17229138,11.002,10.976,5.0]
[1672644439865,5.1197279,11.001,10.976,5.0]
[1672644440077,0.1197279,11.0,10.976,5.0]
[1672644442170,0.1197279,11.0,10.98,50.0]
[1672644442380,0.1197279,11.002,10.981,5.0]
[1672644442595,0.1197279,11.004,10.981,5.0]
[1672644443964,5.11886859,11.005,10.976,5.0]
[1672644444172,0.11886859,11.003,10.976,5.0]
[1672644444381,0.11886859,10.999,10.975,49.5792]
[1672644444593,5.11886859,10.998,10.976,5.0]
[1672644444802,0.11886859,10.997,10.976,5.0]
[1672644446173,0.11886859,10.997,10.973,57.2613]
[1672644446801,0.11886859,10.997,10.975,16.17060379]
[1672644447114,0.11886859,10.997,10.976,5.0]
[1672644447955,0.11886859,11.002,10.976,5.0]
[1672644448163,0.11886859,11.002,10.98,50.0]
[1672644448584,0.11886859,11.004,10.981,21.13731625]
[1672644449008,0.11886859,11.004,10.982,5.0]
[1672644449637,0.11886859,11.003,10.982,5.0]
[1672644450056,0.11886859,11.004,10.982,5.0]
[1672644450270,0.11886859,11.012,10.991,50.0]
[1672644450479,0.11886859,11.012,10.992,5.0]
[1672644451430,5.0,11.028,10.992,5.0]
[1672644451639,5.0,11.028,11.001,50.0]
[1672644451948,5.0,11.028,11.002,5.0]
[1672644452163,13.01815564,11.027,11.002,5.0]
[1672644452370,13.61,11.024,10.994,5.0]
[1672644452582,5.0,11.022,10.994,5.0]
[1672644453108,13.01815564,11.021,10.994,5.0]
[1672644453314,5.0,11.02,11.001,50.0]
[1672644453737,5.0,11.02,11.002,5.0]
[1672644454369,13.02582131,11.019,11.002,5.0]
[1672644454581,13.02582131,11.019,10.997,5.0]
[1672644454998,5.0,11.018,10.997,5.0]
[1672644455414,5.0,11.022,10.997,5.0]
[1672644455633,5.0,11.027,10.997,5.0]
[1672644455946,5.0,11.027,10.998,49.8319]
[1672644456156,5.0,11.03,10.998,49.8319]
[1672644456157,13.01725818,11.025,10.999,55.0]
[1672644456474,5.0,11.024,11.001,50.0]
[1672644456683,5.0,11.024,11.002,5.0]
[1672644456890,1.2,11.028,11.002,5.0]
[1672644457104,1.2,11.028,11.011,50.0]
[1672644457312,1.2,11.028,11.012,5.0]
[1672644457833,5.0,11.035,11.012,5.0]
[1672644458468,13.00448547,11.034,11.012,5.0]
[1672644458674,5.0,11.033,11.012,5.0]
[1672644458892,5.0,11.033,11.005,54.6203]
[1672644459099,86.69,11.033,11.006,5.0]
[1672644459311,13.00448547,11.032,11.006,59.73985322]
[1672644459523,5.1195786,11.031,11.006,0.11955322]
[1672644459838,73.1195786,11.03,11.005,0.11955322]
[1672644460044,0.1195786,11.029,11.005,0.11955322]
[1672644460259,5.1195786,11.029,11.005,0.11955322]
[1672644460574,5.1195786,11.028,11.005,0.11955322]
[1672644460784,0.1195786,11.027,11.005,0.11955322]
[1672644460993,13.12406407,11.027,11.005,0.11955322]
[1672644461200,13.12406407,11.027,11.002,5.0]
[1672644461201,0.1195786,11.026,11.003,0.11955322]
[1672644461416,0.1195786,11.024,11.012,50.0]
[1672644461624,26.71448547,11.027,11.013,5.0]
[1672644461625,0.1195786,11.026,11.013,5.0]
[1672644462039,0.1195786,11.028,11.013,5.0]
[1672644462250,0.1195786,11.029,11.013,5.0]
[1672644463411,0.1195786,11.029,11.012,50.0]
[1672644463723,0.1195786,11.032,11.014,0.11955322]
[1672644463934,5.0,11.039,11.004,5.0]
[1672644463935,0.1195786,11.03,11.005,0.11955322]
[1672644464148,0.1195786,11.029,11.005,0.11955322]
[1672644464560,13.13293114,11.029,11.005,0.11955322]
[1672644464774,74.4295786,11.028,11.004,5.11955322]
[1672644464985,0.1195786,11.027,11.005,0.11955322]
[1672644465195,5.1195786,11.027,11.005,0.11955322]
[1672644465407,0.1195786,11.026,11.005,0.11955322]
[1672644468240,0.1195786,11.027,11.005,0.11955322]
[1672644468563,0.1195786,11.029,11.014,5.11955322]
[1672644468770,0.1195786,11.029,11.015,5.11955322]
[1672644469090,0.1195786,11.03,11.016,0.11955322]
[1672644469395,0.1195786,11.032,11.016,0.11955322]
[1672644469605,0.1195786,11.032,11.007,0.11955322]
[1672644469815,0.1195786,11.032,11.007,5.11955322]
[1672644470029,0.1195786,11.032,11.014,5.11955322]